Cogmind - Beta 13 @@@ ROGUE MODE // 2024.04.22 @ 11:51:23 Player: Fazzonamite Result: Destroyed by Y-45 Defender with Heavy Assault Rifle Performance ------------- Evolutions (1) 500 Regions Visited (4) 800 Robots Destroyed (36) 180 Value Destroyed (1249) 1249 Prototype IDs (0) 0 Alien Tech Used (0) 0 Bonus (700) 700 TOTAL SCORE: 3429 Bonus ------- Entered Garrisons 200 Used RIF Installer 500 Cogmind --------- Core Integrity 0/400 Matter 175/300 Energy 100/100 System Corruption 0% Temperature Cool (9) Movement Core (200) Ox3 Location -9/Garrison Parts ------- > --- POWER (1) -------- (None) > --- PROPULSION (2) --- (None) > --- UTILITY (4) ------ Medium Storage Unit Signal Interpreter Relay Coupler [Grunt] (24) Relay Coupler [Sentry] (21) > --- WEAPON (2) ------- Mace > --- INVENTORY (10) --- Cooling System High-capacity Matter Pod (200) Propulsion Shielding Propulsion Shielding Relay Coupler [Heavy] (10) Mini Grenade Launcher Tiamat Bomb Trap Tiamat Bomb Trap Tiamat Bomb Trap Peak State ------------ > --- POWER ------------ (None) > --- PROPULSION ------- Compact Wheel > --- UTILITY ---------- Medium Storage Unit Signal Interpreter Relay Coupler [Grunt] Relay Coupler [Sentry] > --- WEAPON ----------- Datajack Mace > --- INVENTORY -------- Cooling System High-capacity Matter Pod Propulsion Shielding Propulsion Shielding Relay Coupler [Heavy] Mini Grenade Launcher Tiamat Bomb Trap Tiamat Bomb Trap Tiamat Bomb Trap [Rating: 14] Favorites ----------- Power Light Ion Engine Engine Light Ion Engine Propulsion Compact Wheel Leg Aluminum Leg Wheel Compact Wheel Utility Signal Interpreter Device Sensor Array Storage Small Storage Unit Processor Signal Interpreter Hackware Relay Coupler [Grunt] Protection Propulsion Shielding Weapon EM Pulse Gun Energy Gun EM Pulse Gun Ballistic Gun Assault Rifle Launcher Mini Grenade Launcher Impact Weapon Mace Special Melee Weapon Datajack Build | -11 -10 -9 -9 -9 ------- Run | Yrd Mat Mat Sto Gar Slots Evolved 2 | . . 2 . . Power . | . . . . . Propulsion . | . . . . . Utility 2 | . . 2 . . Weapon . | . . . . . Parts Attached 45 | 6 11 16 6 6 Power 6 | 1 2 1 2 . Engine 6 | 1 2 1 2 . Core . | . . . . . Reactor . | . . . . . Propulsion 9 | 2 4 2 1 . Treads . | . . . . . Leg 2 | . 2 . . . Wheel 7 | 2 2 2 1 . Hover . | . . . . . Flight . | . . . . . Utility 11 | 1 1 5 . 4 Device 4 | . . 3 . 1 Storage 2 | 1 . 1 . . Processor 1 | . 1 . . . Hackware 2 | . . . . 2 Protection 2 | . . 1 . 1 Artifact . | . . . . . Weapon 19 | 2 4 8 3 2 Energy Gun 8 | 1 3 3 1 . Energy Cannon . | . . . . . Ballistic Gun 5 | 1 1 3 . . Ballistic Cannon . | . . . . . Launcher 3 | . . 1 2 . Special Weapon . | . . . . . Impact Weapon 2 | . . 1 . 1 Slashing Weapon . | . . . . . Piercing Weapon . | . . . . . Special Melee Weapon 1 | . . . . 1 Unidentified Prototypes . | . . . . . Parts Lost 18 | . 4 3 9 2 Power 2 | . . . 2 . Propulsion 5 | . 1 1 2 1 Utility 2 | . . . 2 . Weapon 9 | . 3 2 3 1 Highest Loss Streak 9 | . 2 2 9 2 To Critical Strikes . | . . . . . Average Slot Usage (%) 88 | . 97 95 83 65 Engine 9 | . 14 11 8 . Leg 1 | . 4 . . . Wheel 18 | . 23 21 14 10 Device 7 | . . 15 18 2 Storage 12 | . 14 11 11 11 Processor 11 | . 11 11 11 11 Protection 3 | . . 4 . 8 Energy Gun 8 | . 10 11 7 . Ballistic Gun 8 | . 17 5 6 . Launcher 2 | . . . 3 8 Impact Weapon 2 | . . 2 . 11 Naked Turns . | . . . . . Heaviest Build 21 | 14 14 21 21 19 Greatest Support 32 | 26 32 32 32 16 Greatest Overweight (x) 5 | 1 . 1 5 3 Average Overweight (x) . | . . . . . Largest Inventory Capacity 10 | 8 8 10 10 10 Average Capacity 8 | 7 8 9 10 10 Most Carried 10 | 8 8 10 10 10 Average Carried 7 | 4 5 7 9 7 Final Capacity 10 | 8 8 10 10 10 Final Carried 10 | 4 8 10 7 9 Class Distribution -------------------- 75% | Mutant 11% | Skirmisher 6% | Scavenger-Mutant 6% | Assassin Dominant Class ---------------- Mutant | -10/Materials Mutant | -9/Materials Skirmisher | -9/Storage Mutant | -9/Garrison Resources | -11 -10 -9 -9 -9 ----------- Run | Yrd Mat Mat Sto Gar Matter Collected 1031 | 253 497 109 77 95 Remotely . | . . . . . Salvage Created 1358 | . 656 341 361 . Parts 61 | . 28 20 13 . Haulers Intercepted . | . . . . . Recyclers Shooed 1 | . . . 1 . Parts Field Recycled . | . . . . . Retrieved Matter . | . . . . . Parts Self-Destructed . | . . . . . Prevented . | . . . . . Kills | -11 -10 -9 -9 -9 ------- Run | Yrd Mat Mat Sto Gar Combat Hostiles Destroyed 27 | . 14 8 5 . Guns 22 | . 14 6 2 . AOE 5 | . . 2 3 . Classes Destroyed 6 | . 4 1 1 . Builder 1 | . . . 1 . Recycler 4 | . 1 . 3 . Watcher 4 | . 2 1 1 . Swarmer 6 | . 3 3 . . Grunt 15 | . 11 2 2 . Sentry 6 | . . 3 3 . Best Kill Streak 8 | . 5 3 8 . Combat Bots Only 5 | . 5 3 2 . Max Kills in Single Turn 2 | . 1 1 2 . Gunslinging . | . . . . . Exploded 1 | . . 1 1 . Melee . | . . . . . Uniques/NPCs Destroyed . | . . . . . Combat | -11 -10 -9 -9 -9 -------- Run | Yrd Mat Mat Sto Gar Hostile Shots Fired 220 | . 74 49 65 32 Missed 63 | . 19 16 21 7 Damage Taken 2176 | . 658 472 732 314 Core 505 | . 98 85 214 108 Absorbed by Shields . | . . . . . Core Remaining (%) 80 | 100 60 . . . Volleys Fired 103 | . 51 31 21 . Largest 2 | . 2 2 2 . Hottest 90 | . 80 90 68 . Shots Fired 176 | . 98 51 27 . Gun 159 | . 98 49 12 . Cannon . | . . . . . Launcher 17 | . . 2 15 . Special . | . . . . . Kinetic 80 | . 65 12 3 . Thermal . | . . . . . Explosive 17 | . . 2 15 . Electromagnetic 79 | . 33 37 9 . Robot Hit Streak 16 | . 10 13 16 . Robot Miss Streak 4 | . 4 4 1 . Penetration Max . | . . . . . Secondary Targets 1 | . 1 . . . Max Gunslinging Chain 1 | . 1 . . . Shots Hit Robots 123 | . 65 34 24 . Core Hits 63 | . 26 16 21 . Critical Kills . | . . . . . Critical Parts Destroyed . | . . . . . Critical Strikes 3 | . 2 . 1 . Corrupt 3 | . 2 . 1 . Melee Attacks 16 | . . 5 . 11 Impact 16 | . . 5 . 11 Slashing . | . . . . . Piercing . | . . . . . Sneak Attacks . | . . . . . Combat Hostiles . | . . . . . Follow-up Attacks . | . . . . . Damage Inflicted 2311 | . 960 495 856 . Guns 1354 | . 835 377 142 . Cannons . | . . . . . Explosions 957 | . 125 118 714 . Melee . | . . . . . Ramming . | . . . . . Kinetic 682 | . 556 80 46 . Thermal 270 | . 125 99 46 . Explosive 687 | . . 19 668 . Electromagnetic 672 | . 279 297 96 . Impact . | . . . . . Slashing . | . . . . . Piercing . | . . . . . Highest Corruption . | . . . . . Average Corruption . | . . . . . Corruption Purged . | . . . . . Corruption Blocked . | . . . . . Overload Shots . | . . . . . Overflow Damage 33 | . 8 . 25 . Projectiles . | . . . . . Explosions 33 | . 8 . 25 . Melee . | . . . . . Knockbacks . | . . . . . Impact . | . . . . . Kinetic . | . . . . . Secondary . | . . . . . Self-Inflicted Damage 169 | . 74 60 35 . Shots 5 | . 2 2 1 . Rammed . | . . . . . Targets Rammed . | . . . . . Kicked . | . . . . . Crushed . | . . . . . Highest Temperature 129 | . 72 129 22 . Average Temperature 32 | . 25 43 7 . Received Heat Transfer 804 | . 270 132 270 132 Siege Activations . | . . . . . Robots Corrupted . | . . . . . Combat Hostiles . | . . . . . Parts Fried 4 | . . 3 1 . Impact Corruptions . | . . . . . Robots Melted . | . . . . . Combat Hostiles . | . . . . . Parts Melted . | . . . . . Heat Transferred 350 | . 200 100 50 . Parts Sabotaged . | . . . . . Parts Stolen . | . . . . . Parts Stripped . | . . . . . Power Chain Reactions 5 | . 2 2 1 . Alert | -11 -10 -9 -9 -9 ------- Run | Yrd Mat Mat Sto Gar Peak Influence 412 | . 189 412 254 273 Initial 158 | . . 71 41 158 Average 175 | . 117 262 129 205 Maximum Alert Level 2 | . 1 2 1 1 Low Security (%) 65 | 100 99 31 75 44 Level 1 29 | . . 51 24 55 Level 2 5 | . . 17 . . Level 3 . | . . . . . Level 4 . | . . . . . Level 5 . | . . . . . High Security . | . . . . . Max Security . | . . . . . Squads Dispatched 6 | . 2 2 2 . Investigation . | . . . . . Extermination . | . . . . . Reinforcement 5 | . 2 2 1 . Assault . | . . . . . Garrison 1 | . . . 1 . Intercept . | . . . . . Searches Triggered . | . . . . . Construction Impeded . | . . . . . Haulers Reinforced . | . . . . . Active Scanning Responses . | . . . . . Cargo Convoy Interrupts . | . . . . . Stealth | -11 -10 -9 -9 -9 --------- Run | Yrd Mat Mat Sto Gar Distress Signals 3 | . 1 2 . . Communications Jammed . | . . . . . Distress Signals . | . . . . . Times Spotted 53 | . 19 16 12 6 Peak Tracking Total 6 | . 6 4 4 3 Tactical Retreats 3 | . . 2 1 . Traps | -11 -10 -9 -9 -9 ------- Run | Yrd Mat Mat Sto Gar Traps Triggered 1 | . . . 1 . Indirectly . | . . . . . Trap Hack Attempts . | . . . . . Triggered . | . . . . . Disarmed . | . . . . . Reprogrammed . | . . . . . Reused 1 | . . . . 1 Traps Extracted . | . . . . . Installed 2 | . . . . 2 Triggered 1 | . . . . 1 Most Traps Carried 6 | . . . . 6 Machines | -11 -10 -9 -9 -9 ---------- Run | Yrd Mat Mat Sto Gar Machines Disabled 10 | . 1 2 1 6 Max in Single Turn 1 | . 1 1 1 1 Garrison Relay 1 | . . . . 1 Machines Repaired . | . . . . . Machines Dismantled . | . . . . . Machines Sabotaged . | . . . . . Overloaded Fab Kills . | . . . . . Hacking | -11 -10 -9 -9 -9 --------- Run | Yrd Mat Mat Sto Gar Machines Accessed 10 | . 3 2 4 1 Terminals 9 | . 3 2 3 1 Fabricators . | . . . . . Repair Stations . | . . . . . Recycling Units . | . . . . . Scanalyzers . | . . . . . Garrison Access 1 | . . . 1 . Total Hacks 16 | . 5 3 7 1 Successful 6 | . 1 1 4 . Failed 10 | . 4 2 3 1 Catastrophic 2 | . 1 . . 1 Database Lockouts . | . . . . . Manual 2 | . . . 2 . Terminals 13 | . 5 3 4 1 Fabricators . | . . . . . Repair Stations . | . . . . . Recycling Units . | . . . . . Scanalyzers . | . . . . . Garrison Access 3 | . . . 3 . Terminal Hacks 4 | . 1 1 2 . Open Door 2 | . . . 2 . Unreport Threat 1 | . . 1 . . Locate Traps 1 | . 1 . . . Fabricator Hacks . | . . . . . Repair Station Hacks . | . . . . . Recycling Unit Hacks . | . . . . . Scanalyzer . | . . . . . Garrison Access Hacks 1 | . . . 1 . Unlock Access 1 | . . . 1 . Unauthorized Hacks 1 | . . . 1 . Terminals 1 | . . . 1 . Assimilate 1 | . . . 1 . Fabricators . | . . . . . Repair Stations . | . . . . . Recycling Units . | . . . . . Scanalyzers . | . . . . . Garrison Access . | . . . . . Data Cores Recovered . | . . . . . Used . | . . . . . Hacking Detections 8 | . 3 1 3 1 Full Trace Events . | . . . . . Feedback Events . | . . . . . Feedback Blocked . | . . . . . Robot Schematics Acquired . | . . . . . Robots Built . | . . . . . Authchips . | . . . . . Time . | . . . . . Total Robot Build Rating . | . . . . . Part Schematics Acquired . | . . . . . Parts Built . | . . . . . Authchips . | . . . . . Time . | . . . . . Total Part Build Rating . | . . . . . Parts Repaired . | . . . . . Time . | . . . . . Parts Recycled . | . . . . . Recycled Matter . | . . . . . Retrieved Matter . | . . . . . Retrieved Components . | . . . . . Parts Scanalyzed . | . . . . . Part Schematics Acquired . | . . . . . Parts Damaged . | . . . . . Bothacking | -11 -10 -9 -9 -9 ------------ Run | Yrd Mat Mat Sto Gar Used RIF Installer 1 | . . . . 1 Robots Hacked . | . . . . . Non-combat . | . . . . . Combat . | . . . . . Robot Hacks Applied . | . . . . . Relay Couplers Released 4 | . . . . 4 Machine Destruction 4 | . . . . 4 Attached 2 | . . . . 2 Fabnet Peak Effective % . | . . . . . Robots Rewired . | . . . . . Allies Hacked . | . . . . . Hacks Repelled . | . . . . . Allies | -11 -10 -9 -9 -9 -------- Run | Yrd Mat Mat Sto Gar Total Allies . | . . . . . Largest Group . | . . . . . Highest-Rated Group . | . . . . . Highest-Rated Ally . | . . . . . Total Orders 1 | . . . . 1 EXPLORE 1 | . . . . 1 Ally Attacks . | . . . . . Total Damage . | . . . . . Kills . | . . . . . Allies Corrupted . | . . . . . Allies Melted . | . . . . . Intel | -11 -10 -9 -9 -9 ------- Run | Yrd Mat Mat Sto Gar Robot Analysis Total . | . . . . . Derelict Logs Recovered . | . . . . . Drone Launches 2 | . . . . 2 Drone Recoveries . | . . . . . Exploration | -11 -10 -9 -9 -9 ------------- Run | Yrd Mat Mat Sto Gar Turns Passed 1649 | 62 556 500 208 323 Spaces Moved 941 | 50 329 239 115 208 Core 29 | 18 . . 7 4 Treads . | . . . . . Legs 30 | . 30 . . . Wheels 882 | 32 299 239 108 204 Hover . | . . . . . Flight . | . . . . . Fastest Speed 50 | 50 90 100 100 100 Average Speed 101 | 83 100 100 111 102 Slowest Speed 300 | 100 120 115 300 200 Overloaded Moves . | . . . . . Propulsion Burnouts . | . . . . . Robots Hopped . | . . . . . Cave-ins Triggered . | . . . . . Exploration Rate (%) 29 | 4 57 21 29 36 Regions Visited 4 Branch Regions 1 Pre-discovered Areas . | . . . . . Known Exits Taken 3 | . 1 1 1 . Unknown Exits Taken 1 | 1 . . . . Scrap Searched . | . . . . . Spaces Dug 22 | . . 22 . . Terrain Destroyed 89 | . 9 24 56 . Melee 3 | . . 3 . . Projectile . | . . . . . AOE 86 | . 9 21 56 . Terrain Rammed . | . . . . . Walls Destroyed . | . . . . . Machines Disabled . | . . . . . Actions | -11 -10 -9 -9 -9 --------- Run | Yrd Mat Mat Sto Gar Total 1438 | 69 460 441 168 300 Wait 259 | 6 46 128 19 60 Move 938 | 49 328 238 115 208 Hop . | . . . . . Pick Up 50 | 8 16 13 4 9 Fast Attach 5 | 2 . 3 . . Attach 27 | 4 9 6 4 4 Detach . | . . . . . Swap 13 | . 2 7 2 2 Drop 25 | . 8 10 3 4 Fire 103 | . 51 31 21 . Melee 16 | . . 5 . 11 Ram . | . . . . . Kick . | . . . . . Crush . | . . . . . Escape Stasis . | . . . . . Rewire . | . . . . . Trap 2 | . . . . 2 Miscellaneous . | . . . . . Route ------- -11/Scrapyard -10/Materials (discovered 2 exits: *Mat / *Min) -9/Materials -9/Storage -9/Garrison History --------- Turn | Location | Event 5 | -11/Scrapyard | Discovered new exit (range 16) 63 | -11/Scrapyard | Entered Materials 307 | -10/Materials | Build established: Mutant 426 | -10/Materials | Discovered new exit (range 12) 447 | -10/Materials | Identified exit to Mines 605 | -10/Materials | Discovered new exit (range 5) 618 | -10/Materials | Identified exit to Materials 619 | -10/Materials | Entered another Materials area 619 | -9/Materials | Evolved 2 slots: Utility x2 1086 | -9/Materials | Discovered new exit (range 15) 1118 | -9/Materials | Identified exit to Storage 1119 | -9/Materials | Entered Storage 1272 | -9/Storage | Garrison activated, responded to threat 1297 | -9/Storage | Core integrity fell below 50% 1327 | -9/Storage | Identified exit to Garrison 1327 | -9/Storage | Entered Garrison 1345 | -9/Garrison | Lost 9 parts (2p2n2u3w) 1381 | -9/Garrison | Triggered checkpoint 1503 | -9/Garrison | Triggered checkpoint 1519 | -9/Garrison | Core integrity fell below 20% 1538 | -9/Garrison | Installed Relay Interface Framework 1570 | -9/Garrison | Garrison Relay disabled 1650 | -9/Garrison | Destroyed by Y-45 Defender with Heavy Assault Rifle Last Messages --------------- 01525_ Acquired 25 matter. 01526_ Acquired 33 matter. Initiating installation procedure... 01538_ Relay Interface Framework installed. 01570_ Garrison Relay disabled. 01570_ Relay Coupler [Grunt] tumbles out of relay unit. 01570_ Relay Coupler [Heavy] tumbles out of relay unit. 01570_ Relay Coupler [NC] tumbles out of relay unit. 01570_ Relay Coupler [Sentry] tumbles out of relay unit. 01574_ Acquired Relay Coupler [Grunt]. 01576_ Acquired Relay Coupler [Sentry]. 01579_ Dropped Tiamat Bomb Trap. 01580_ Acquired Relay Coupler [Heavy]. 01620_ Acquired 13 matter. 01636_ Datajack destroyed. 01642_ Com. Wheel destroyed. Map ----- +----------------------------------------------------+ | ??????????????????????????????# "" ^ # ## ## | | ??????????????????????????????# ^ ## # | | ??????????????????????????????# """ """" ### # | | ??????????????????????????????#" " " #?# # | | ???????????????????????????????"&&" #?# # # | | ???????????????????????????????###########?# ## | | ???????????????????????????????????????????# ### | | ???????????????????????????????????????????# #?# | | ???????????????????????????????????????????# #?# | | ???????????????????????????????????????????# #?# | | ???????????????????????????????????????????# #?# | | ???????????????????????????????????????????# #?# | | ??????????????????????###################### #?# | | ??????????????????????# #?# | | ??????????????????????# #?# | | ??????????????????????# #?# | | ??????????????????????# ######################?# | | ??????????????????????# #??????????????????????? | | ???????????????????#### #??????????????????????? | | ???????????????????# + #??????????????????????? | | ???????????????????# ##YY #??????????????????????? | | ???????????????????#??#g #??????????????????????? | | ??????????????????????# #??????????????????????? | | ??? #############""""## #??????????????????????? | | ?? #??????????????????????? | | ?? @#??????????????????????? | | ?? #??????????????????????? | | ?????####### ## ## #??????????????????????? | | ?????????### ## ## #??????????????????????? | | ?????????# "??????????????????????? | | ?????????# "??????????????????????? | | ?????????# "??????????????????????? | | ?????????# "??????????????????????? | | ?????????### %## ## #??????????????????????? | | ???????????# ## ## #??????????????????????? | | ?????????? ?????????????????????? | | ???????? ???????????????????? | | ???????##### #####??????????????????? | | ???????????######""""## ##??????????????????????? | | ??????????????????????# #???????????????????????? | | ??????????????????????? #???????????????????????? | | ??????????????????????? #???????????????????????? | | ??????????????????????? #???????????????????????? | | ?????????????????????????????????????????????????? | | ?????????????????????????????????????????????????? | | ?????????????????????????????????????????????????? | | ?????????????????????????????????????????????????? | | ?????????????????????????????????????????????????? | | ?????????????????????????????????????????????????? | | ?????????????????????????????????????????????????? | +----------------------------------------------------+ Best States ------------- Heat Dissipation 42 Energy Generation 12 Energy Capacity 265 Matter Stores 300 Matter Capacity 300 Sight Range 16 Robot Scan Range 14 Terrain Scan Density 10 Armor Coverage 150 Propulsion Shielding 33 Evasion (%) 55 Relay Coupler Types 2 Relay Coupler Value 45 Item Schematics ----------------- None Robot Schematics ------------------ None Fabricated ------------ Nothing Alien Tech Used ----------------- None Achievements -------------- None Challenges ------------ None Game ------ Seed GlidesysShrapnelComputer Manual? 0 Play Time 00:38:09 Cumulative 38.0 hours Start 2024.04.22 @ 11:12:16 End 2024.04.22 @ 11:51:23 Sessions 1 Manual Loads 0 Difficulty Rogue Special Mode None Game No. 39 Rogue 39 Adventurer 0 Explorer 0 Win Type - Total 0 Types 0/0/0/0/0/0/0/0/0 Lore% 25 Gallery% 31 Achievement% 24 Wizard Run 0 Options --------- Layout 2 ASCII 0 Keyboard 0 Movement Mouse Keybinds 0 Fullscreen 1 Font 48/Smallcaps Map View 50x44 Zoom Use 0% Tactical HUD 1 Map Filters NONE Filters NONE Steam 1 RUN: 15f3306e-9517-4c73-ab5a-0dc0a2977ee1